fUST/lending_fUST_20241220
["ID","MTS","AMOUNT","RATE_DAILY","PERIOD"]
[346083657,1734695440718,-500.0,0.00022191,6]
[346083658,1734695440728,-500.0,0.00022191,6]
[346083659,1734695440738,-156.94373206,0.00022191,6]
[346083660,1734695440748,-536.63,0.00022191,6]
[346083661,1734695440758,-500.0,0.00022191,6]
[346083662,1734695440768,-500.0,0.00022191,6]
[346083663,1734695440778,-1059.47,0.00022191,6]
[346083664,1734695440788,-500.0,0.00022191,6]
[346083665,1734695440798,-500.0,0.00022191,6]
[346083666,1734695440807,-1737.43,0.00022191,6]
[346083667,1734695440817,-500.0,0.00022191,6]
[346083668,1734695440828,-500.0,0.00022191,6]
[346083669,1734695440838,-1166.24482856,0.00022191,6]
[346083723,1734695445874,-500.0,0.00021917,6]
[346083724,1734695445885,-500.0,0.00021917,6]
[346083727,1734695445895,-7690.63517144,0.00022191,6]
[346083729,1734695445904,-1259.63,0.00022191,6]
[346083731,1734695445914,-604.9,0.00022191,6]
[346083733,1734695445924,-500.0,0.00022191,6]
[346083734,1734695445933,-500.0,0.00022191,6]
[346083735,1734695445943,-500.0,0.00022191,6]
[346083736,1734695445953,-500.0,0.00022191,6]
[346083737,1734695445963,-500.0,0.00022191,6]
[346083738,1734695445976,-500.0,0.00022191,6]
[346083739,1734695445986,-350.0,0.00022191,2]
[346083740,1734695445996,-26119.07,0.00022191,6]
[346083741,1734695446006,-12484.53,0.00022191,6]
[346083742,1734695446016,-6479.93,0.00022191,6]
[346083743,1734695446025,-388.34230262,0.00022191,6]
[346083744,1734695446035,-500.0,0.00022191,6]
[346083745,1734695446045,-500.0,0.00022191,6]
[346083746,1734695446054,-872.14,0.00022191,6]
[346083747,1734695446064,-500.0,0.00022191,6]
[346083748,1734695446074,-500.0,0.00022191,6]
[346083749,1734695446084,-500.0,0.00022191,6]
[346083750,1734695446094,-500.0,0.00022191,6]
[346083751,1734695446103,-500.0,0.00022191,6]
[346083752,1734695446113,-1760.75,0.00022191,6]
[346083754,1734695446123,-500.0,0.00022191,6]
[346083756,1734695446132,-500.0,0.00022191,6]
[346083758,1734695446141,-6293.53,0.00022191,6]
[346083759,1734695446151,-500.0,0.00022191,6]
[346083760,1734695446160,-1957.09,0.00022191,6]
[346083762,1734695446170,-500.0,0.00022191,6]
[346083764,1734695446179,-500.0,0.00022191,6]
[346083765,1734695446195,-464.30781795,0.00022191,6]
[346083767,1734695446204,-3441.37,0.00022191,6]
[346083768,1734695446213,-1705.94,0.00022191,6]
[346083769,1734695446225,-500.0,0.00022191,6]
[346083770,1734695446236,-500.0,0.00022191,6]
[346083771,1734695446245,-1606.97,0.00022191,6]
[346083772,1734695446255,-500.0,0.00022191,6]
[346083773,1734695446264,-500.0,0.00022191,6]
[346083774,1734695446273,-500.0,0.00022191,6]
[346083775,1734695446282,-500.0,0.00022191,6]
[346083776,1734695446292,-500.0,0.00022191,6]
[346083777,1734695446301,-500.0,0.00022191,6]
[346083778,1734695446310,-710.49,0.00022191,6]
[346083779,1734695446320,-500.0,0.00022191,6]
[346083780,1734695446329,-500.0,0.00022191,6]
[346083781,1734695446339,-500.0,0.00022191,6]
[346083782,1734695446349,-500.0,0.00022191,6]
[346083783,1734695446358,-1045.23,0.00022191,6]
[346083784,1734695446367,-659.67,0.00022191,6]
[346083785,1734695446377,-10652.65,0.00022191,6]
[346083786,1734695446386,-500.0,0.00022191,6]
[346083787,1734695446396,-500.0,0.00022191,6]
[346083788,1734695446405,-500.0,0.00022191,6]
[346083789,1734695446415,-500.0,0.00022191,6]
[346083790,1734695446424,-500.0,0.00022191,6]
[346083791,1734695446434,-500.0,0.00022191,6]
[346083792,1734695446452,-564.57,0.00022191,6]
[346083793,1734695446462,-500.0,0.00022191,6]
[346083794,1734695446477,-500.0,0.00022191,6]
[346083795,1734695446487,-1659.22,0.00022191,6]
[346083796,1734695446498,-500.0,0.00022191,6]
[346083797,1734695446508,-500.0,0.00022191,6]
[346083798,1734695446518,-2623.57,0.00022191,6]
[346083799,1734695446528,-3774.55,0.00022191,6]
[346083800,1734695446537,-2715.88,0.00022191,2]
[346083801,1734695446547,-500.0,0.00022191,6]
[346083802,1734695446557,-500.0,0.00022191,6]
[346083803,1734695446567,-500.0,0.00022191,6]
[346083804,1734695446577,-2144.16,0.00022191,6]
[346083805,1734695446586,-340.97740866,0.00022191,6]
[346083806,1734695446596,-735.95,0.00022191,6]
[346083807,1734695446606,-500.0,0.00022191,6]
[346083808,1734695446616,-635.66,0.00022191,6]
[346083809,1734695446626,-1503.77,0.00022191,6]
[346083810,1734695446636,-500.0,0.00022191,6]
[346083811,1734695446645,-1406.33,0.00022191,6]
[346083812,1734695446655,-500.0,0.00022191,6]
[346083813,1734695446665,-1377.63,0.00022191,6]
[346083814,1734695446675,-1700.87,0.00022191,6]
[346083815,1734695446684,-648.56,0.00022191,6]
[346083816,1734695446694,-594.82,0.00022191,6]
[346083817,1734695446703,-679.09,0.00022191,6]
[346083818,1734695446714,-500.0,0.00022191,6]
[346083819,1734695446726,-1820.66,0.00022191,6]
[346083820,1734695446737,-500.0,0.00022191,6]
[346083821,1734695446746,-500.0,0.00022191,6]
[346083823,1734695446756,-656.63,0.00022191,6]
[346083824,1734695446766,-500.0,0.00022191,6]
[346083826,1734695446776,-510.72,0.00022191,6]
[346083827,1734695446786,-500.0,0.00022191,6]
[346083828,1734695446795,-983.9,0.00022191,6]
[346083829,1734695446805,-3397.33,0.00022191,6]
[346083830,1734695446815,-557.8,0.00022191,6]
[346083831,1734695446824,-500.0,0.00022191,6]
[346083832,1734695446834,-500.0,0.00022191,6]
[346083833,1734695446843,-500.0,0.00022191,6]
[346083834,1734695446853,-688.72,0.00022191,6]
[346083835,1734695446862,-500.0,0.00022191,6]
[346083836,1734695446872,-500.0,0.00022191,6]
[346083837,1734695446882,-870.15,0.00022191,6]
[346083838,1734695446891,-500.0,0.00022191,6]
[346083839,1734695446900,-500.0,0.00022191,6]
[346083840,1734695446910,-329.36031173,0.0002221,2]
[346083841,1734695446919,-315.3550137,0.00022465,6]
[346083843,1734695446959,-184.6449863,0.00022465,6]
[346083844,1734695446976,-500.0,0.00022465,6]
[346083845,1734695446985,-500.0,0.00022465,6]
[346083846,1734695446995,-500.0,0.00022465,6]
[346083848,1734695447005,-500.0,0.00022465,6]
[346083849,1734695447015,-500.0,0.00022465,6]
[346083850,1734695447025,-500.0,0.00022465,6]
[346083851,1734695447034,-500.0,0.00022465,6]
[346083852,1734695447043,-500.0,0.00022465,6]
[346083853,1734695447053,-500.0,0.00022465,6]
[346083854,1734695447062,-500.0,0.00022465,6]
[346083855,1734695447071,-500.0,0.00022465,6]
[346083856,1734695447080,-535.84777053,0.00022465,6]
[346083857,1734695447090,-500.0,0.00022465,6]
[346083858,1734695447099,-393.92607046,0.00022465,6]
[346083859,1734695447109,-500.0,0.00022465,6]
[346083860,1734695447119,-500.0,0.00022465,6]
[346083862,1734695447128,-500.0,0.00022465,6]
[346083864,1734695447137,-128.53119698,0.00022465,6]
[346083866,1734695447149,-402.8298434,0.00022465,6]
[346083868,1734695447159,-500.0,0.00022465,6]
[346083869,1734695447168,-500.0,0.00022465,6]
[346083870,1734695447178,-500.0,0.00022465,6]
[346083872,1734695447187,-500.0,0.00022465,6]
[346083874,1734695447197,-500.0,0.00022465,6]
[346083875,1734695447210,-558.555647,0.00022465,6]
[346083877,1734695447221,-500.0,0.00022465,6]
[346083879,1734695447230,-505.64,0.00022465,6]
[346083881,1734695447240,-500.0,0.00022465,6]
[346083882,1734695447249,-500.0,0.00022465,6]
[346083883,1734695447259,-500.0,0.00022465,6]
[346083885,1734695447270,-500.0,0.00022465,6]
[346083886,1734695447280,-500.0,0.00022465,6]
[346083888,1734695447291,-500.0,0.00022465,6]
[346083889,1734695447299,-500.0,0.00022465,6]
[346083890,1734695447309,-792.84,0.00022465,6]
[346083891,1734695447318,-500.0,0.00022465,6]
[346083892,1734695447328,-500.0,0.00022465,6]
[346083893,1734695447338,-666.3,0.00022465,6]
[346083894,1734695447348,-500.0,0.00022465,6]
[346083895,1734695447358,-500.0,0.00022465,6]
[346083896,1734695447367,-500.0,0.00022465,6]
[346083897,1734695447377,-500.0,0.00022465,6]
[346083898,1734695447387,-500.0,0.00022465,6]
[346083899,1734695447396,-500.0,0.00022465,6]
[346083900,1734695447406,-643.39392522,0.00022465,6]
[346083901,1734695447415,-500.0,0.00022465,6]
[346083903,1734695447424,-587.12590236,0.00022465,6]
[346083904,1734695447434,-546.14,0.00022465,6]
[346083905,1734695447444,-500.0,0.00022465,6]
[346083906,1734695447454,-1569.66,0.00022465,6]
[346083907,1734695447463,-500.0,0.00022465,6]
[346083908,1734695447481,-209.00618893,0.00022465,6]
[346083909,1734695447493,-290.99381107,0.00022465,6]
[346083910,1734695447503,-500.0,0.00022465,6]
[346083911,1734695447512,-500.0,0.00022465,6]
[346083912,1734695447522,-500.0,0.00022465,6]
[346083913,1734695447531,-500.0,0.00022465,6]
[346083914,1734695447541,-1153.1,0.00022465,6]
[346083915,1734695447551,-500.0,0.00022465,6]
[346083916,1734695447560,-500.0,0.00022465,6]
[346083917,1734695447569,-500.0,0.00022465,6]
[346083918,1734695447579,-500.0,0.00022465,6]
[346083919,1734695447589,-825.59,0.00022465,6]
[346083920,1734695447599,-168.0,0.00022465,6]
[346083921,1734695447609,-500.0,0.00022465,6]
[346083922,1734695447619,-909.44,0.00022465,6]
[346083923,1734695447628,-661.6,0.00022465,6]
[346083924,1734695447638,-500.0,0.00022465,6]
[346083925,1734695447647,-318.84745831,0.00022465,6]
[346083926,1734695447657,-500.0,0.00022465,6]
[346083927,1734695447667,-500.0,0.00022465,6]
[346083928,1734695447676,-500.0,0.00022465,6]
[346083929,1734695447685,-1058.73,0.00022465,6]
[346083930,1734695447695,-500.0,0.00022465,6]
[346083931,1734695447704,-500.0,0.00022465,6]
[346083932,1734695447713,-742.68,0.00022465,6]
[346083933,1734695447728,-500.0,0.00022465,6]
[346083934,1734695447737,-598.99,0.00022465,6]
[346083935,1734695447747,-500.0,0.00022465,6]
[346083936,1734695447756,-500.0,0.00022465,6]
[346083937,1734695447765,-500.0,0.00022465,6]
[346083938,1734695447775,-500.0,0.00022465,6]
[346083939,1734695447784,-711.99,0.00022465,6]
[346083940,1734695447793,-500.0,0.00022465,6]
[346083941,1734695447803,-500.0,0.00022465,6]
[346083942,1734695447812,-500.0,0.00022465,6]
[346083943,1734695447822,-500.0,0.00022465,6]
[346083944,1734695447832,-500.0,0.00022465,6]
[346083945,1734695447841,-1097.79,0.00022465,6]
[346083946,1734695447851,-674.85,0.00022465,6]
[346083947,1734695447861,-739.83,0.00022465,6]
[346083948,1734695447870,-500.0,0.00022465,6]
[346083949,1734695447880,-500.0,0.00022465,6]
[346083950,1734695447890,-621.48998649,0.00022465,6]
[346083951,1734695447899,-1008.24,0.00022465,6]
[346083952,1734695447909,-500.0,0.00022465,6]
[346083953,1734695447918,-500.0,0.00022465,6]
[346083954,1734695447928,-500.0,0.00022465,6]
[346083955,1734695447937,-500.0,0.00022465,6]
[346083956,1734695447947,-500.0,0.00022465,6]
[346083957,1734695447958,-500.0,0.00022465,6]
[346083958,1734695447970,-500.0,0.00022465,6]
[346083959,1734695447980,-500.0,0.00022465,6]
[346083960,1734695447989,-500.0,0.00022465,6]
[346083961,1734695447999,-1582.09,0.00022465,6]
[346083962,1734695448008,-954.11,0.00022465,6]
[346083963,1734695448018,-500.0,0.00022465,6]
[346083964,1734695448027,-1591.5,0.00022465,6]
[346083965,1734695448037,-625.41,0.00022465,6]
[346083966,1734695448046,-500.0,0.00022465,6]
[346083967,1734695448055,-974.47,0.00022465,6]
[346083968,1734695448064,-891.65,0.00022465,6]
[346083969,1734695448074,-500.0,0.00022465,6]
[346083970,1734695448083,-940.38,0.00022465,6]
[346083971,1734695448093,-500.0,0.00022465,6]
[346083972,1734695448102,-500.0,0.00022465,6]
[346083973,1734695448111,-500.0,0.00022465,6]
[346083974,1734695448120,-536.63,0.00022465,6]
[346083975,1734695448130,-500.0,0.00022465,6]
[346083976,1734695448139,-500.0,0.00022465,6]
[346083977,1734695448148,-1059.47,0.00022465,6]
[346083978,1734695448161,-500.0,0.00022465,6]
[346083979,1734695448169,-500.0,0.00022465,6]
[346083980,1734695448178,-500.0,0.00022465,6]
[346083981,1734695448191,-1737.43,0.00022465,6]
[346083982,1734695448200,-500.0,0.00022465,6]
[346083983,1734695448209,-8856.88,0.00022465,6]
[346083984,1734695448220,-1259.63,0.00022465,6]
[346083985,1734695448230,-604.9,0.00022465,6]
[346083986,1734695448240,-202.84053838,0.00022465,6]
[346083987,1734695448249,-500.0,0.00022465,6]
[346083988,1734695448259,-500.0,0.00022465,6]
[346083989,1734695448269,-500.0,0.00022465,6]
[346083990,1734695448278,-500.0,0.00022465,6]
[346083991,1734695448287,-500.0,0.00022465,6]
[346083992,1734695448297,-350.0,0.00022465,2]
[346083993,1734695448306,-26119.07,0.00022465,6]
[346083994,1734695448315,-12484.53,0.00022465,6]
[346083995,1734695448324,-6479.93,0.00022465,6]
[346083996,1734695448333,-500.0,0.00022465,6]
[346083997,1734695448343,-500.0,0.00022465,6]
[346083998,1734695448352,-872.14,0.00022465,6]
[346083999,1734695448361,-500.0,0.00022465,6]
[346084000,1734695448370,-500.0,0.00022465,6]
[346084001,1734695448380,-500.0,0.00022465,6]
[346084002,1734695448389,-500.0,0.00022465,6]
[346084003,1734695448398,-500.0,0.00022465,6]
[346084004,1734695448407,-1760.75,0.00022465,6]
[346084005,1734695448417,-500.0,0.00022465,6]
[346084006,1734695448426,-500.0,0.00022465,6]
[346084007,1734695448436,-6293.53,0.00022465,6]
[346084008,1734695448446,-500.0,0.00022465,6]
[346084009,1734695448455,-1957.09,0.00022465,6]
[346084010,1734695448464,-500.0,0.00022465,6]
[346084011,1734695448476,-500.0,0.00022465,6]
[346084012,1734695448486,-3441.37,0.00022465,6]
[346084013,1734695448495,-1705.94,0.00022465,6]
[346084014,1734695448505,-500.0,0.00022465,6]
[346084015,1734695448514,-500.0,0.00022465,6]
[346084016,1734695448523,-638.2118106,0.00022465,6]
[346084017,1734695448536,-968.7581894,0.00022465,6]
[346084018,1734695448546,-500.0,0.00022465,6]
[346084019,1734695448555,-500.0,0.00022465,6]
[346084020,1734695448564,-500.0,0.00022465,6]
[346084021,1734695448573,-500.0,0.00022465,6]
[346084022,1734695448582,-500.0,0.00022465,6]
[346084023,1734695448591,-500.0,0.00022465,6]
[346084024,1734695448600,-710.49,0.00022465,6]
[346084025,1734695448610,-500.0,0.00022465,6]
[346084026,1734695448619,-500.0,0.00022465,6]
[346084027,1734695448628,-500.0,0.00022465,6]
[346084028,1734695448637,-500.0,0.00022465,6]
[346084029,1734695448646,-1045.23,0.00022465,6]
[346084030,1734695448655,-659.67,0.00022465,6]
[346084031,1734695448664,-10652.65,0.00022465,6]
[346084032,1734695448673,-500.0,0.00022465,6]
[346084033,1734695448683,-236.19850151,0.00022465,6]
[346084034,1734695448694,-263.80149849,0.00022465,6]
[346084035,1734695448704,-500.0,0.00022465,6]
[346084036,1734695448713,-500.0,0.00022465,6]
[346084037,1734695448725,-500.0,0.00022465,6]
[346084038,1734695448735,-500.0,0.00022465,6]
[346084039,1734695448745,-564.57,0.00022465,6]
[346084040,1734695448755,-500.0,0.00022465,6]
[346084041,1734695448764,-500.0,0.00022465,6]
[346084042,1734695448773,-1659.22,0.00022465,6]
[346084043,1734695448783,-500.0,0.00022465,6]
[346084044,1734695448792,-500.0,0.00022465,6]
[346084045,1734695448801,-2623.57,0.00022465,6]
[346084046,1734695448810,-3774.55,0.00022465,6]
[346084047,1734695448819,-2715.88,0.00022465,2]
[346084048,1734695448829,-500.0,0.00022465,6]
[346084049,1734695448838,-500.0,0.00022465,6]
[346084050,1734695448848,-500.0,0.00022465,6]
[346084051,1734695448858,-2144.16,0.00022465,6]
[346084052,1734695448867,-735.95,0.00022465,6]
[346084053,1734695448877,-500.0,0.00022465,6]
[346084054,1734695448886,-635.66,0.00022465,6]
[346084055,1734695448896,-1503.77,0.00022465,6]
[346084056,1734695448905,-500.0,0.00022465,6]
[346084057,1734695448915,-1406.33,0.00022465,6]
[346084058,1734695448924,-500.0,0.00022465,6]
[346084059,1734695448934,-1377.63,0.00022465,6]
[346084060,1734695448943,-1700.87,0.00022465,6]
[346084061,1734695448953,-648.56,0.00022465,6]
[346084062,1734695448962,-594.82,0.00022465,6]
[346084063,1734695448974,-679.09,0.00022465,6]
[346084064,1734695448983,-500.0,0.00022465,6]
[346084065,1734695448992,-1820.66,0.00022465,6]
[346084066,1734695449001,-500.0,0.00022465,6]
[346084067,1734695449011,-500.0,0.00022465,6]
[346084068,1734695449021,-656.63,0.00022465,6]
[346084069,1734695449030,-314.94485951,0.00022465,6]
[346084070,1734695449043,-185.05514049,0.00022465,6]
[346084071,1734695449052,-510.72,0.00022465,6]
[346084072,1734695449061,-500.0,0.00022465,6]
[346084073,1734695449071,-983.9,0.00022465,6]
[346084074,1734695449082,-3397.33,0.00022465,6]
[346084075,1734695449092,-557.8,0.00022465,6]
[346084076,1734695449102,-500.0,0.00022465,6]
[346084077,1734695449111,-500.0,0.00022465,6]
[346084078,1734695449121,-500.0,0.00022465,6]
[346084079,1734695449130,-688.72,0.00022465,6]
[346084080,1734695449139,-500.0,0.00022465,6]
[346084081,1734695449149,-500.0,0.00022465,6]
[346084082,1734695449158,-870.15,0.00022465,6]
[346084083,1734695449168,-500.0,0.00022465,6]
[346084084,1734695449177,-500.0,0.00022465,6]
[346084085,1734695449187,-500.0,0.00022473,2]
[346084086,1734695449199,-500.0,0.00022473,2]
[346084087,1734695449208,-150.635,0.000225,2]
[346084088,1734695449220,-184.73,0.000225,2]
[346084089,1734695449231,-150.0,0.000225,2]
[346084090,1734695449240,-150.0,0.000225,2]
[346084091,1734695449249,-329.36031173,0.00022603,2]
[346084092,1734695449259,-1000.0,0.00022721,2]
[346084093,1734695449268,-1000.0,0.00022721,2]
[346084094,1734695449280,-1000.0,0.00022721,2]
[346084095,1734695449290,-500.0,0.00022739,6]
[346084096,1734695449299,-500.0,0.00022739,6]
[346084097,1734695449309,-500.0,0.00022739,6]
[346084098,1734695449319,-500.0,0.00022739,6]
[346084099,1734695449328,-500.0,0.00022739,6]
[346084100,1734695449338,-500.0,0.00022739,6]
[346084101,1734695449347,-500.0,0.00022739,6]
[346084102,1734695449357,-500.0,0.00022739,6]
[346084103,1734695449366,-500.0,0.00022739,6]
[346084104,1734695449377,-500.0,0.00022739,6]
[346084105,1734695449386,-500.0,0.00022739,6]
[346084106,1734695449395,-500.0,0.00022739,6]
[346084107,1734695449405,-500.0,0.00022739,6]
[346084108,1734695449415,-500.0,0.00022739,6]
[346084109,1734695449425,-500.0,0.00022739,6]
[346084110,1734695449435,-500.0,0.00022739,6]
[346084111,1734695449444,-500.0,0.00022739,6]
[346084112,1734695449453,-500.0,0.00022739,6]
[346084113,1734695449463,-500.0,0.00022739,6]
[346084114,1734695449475,-500.0,0.00022739,6]
[346084115,1734695449484,-500.0,0.00022739,6]
[346084116,1734695449493,-500.0,0.00022739,6]
[346084117,1734695449502,-505.64,0.00022739,6]
[346084118,1734695449512,-500.0,0.00022739,6]
[346084119,1734695449522,-500.0,0.00022739,6]
[346084120,1734695449532,-500.0,0.00022739,6]
[346084121,1734695449541,-500.0,0.00022739,6]
[346084122,1734695449551,-500.0,0.00022739,6]
[346084123,1734695449560,-500.0,0.00022739,6]
[346084124,1734695449569,-500.0,0.00022739,6]
[346084125,1734695449578,-792.84,0.00022739,6]
[346084126,1734695449588,-500.0,0.00022739,6]
[346084127,1734695449598,-500.0,0.00022739,6]
[346084128,1734695449607,-666.3,0.00022739,6]
[346084129,1734695449617,-500.0,0.00022739,6]
[346084130,1734695449627,-500.0,0.00022739,6]
[346084131,1734695449637,-500.0,0.00022739,6]
[346084132,1734695449646,-500.0,0.00022739,6]
[346084133,1734695449655,-500.0,0.00022739,6]
[346084134,1734695449664,-500.0,0.00022739,6]
[346084135,1734695449674,-500.0,0.00022739,6]
[346084136,1734695449683,-546.14,0.00022739,6]
[346084137,1734695449694,-500.0,0.00022739,6]
[346084138,1734695449703,-1569.66,0.00022739,6]
[346084139,1734695449712,-500.0,0.00022739,6]
[346084140,1734695449725,-500.0,0.00022739,6]
[346084141,1734695449734,-317.84117478,0.00022739,6]
[346084142,1734695449754,-182.15882522,0.00022739,6]
[346084143,1734695449763,-500.0,0.00022739,6]
[346084144,1734695449772,-500.0,0.00022739,6]
[346084145,1734695449781,-500.0,0.00022739,6]
[346084146,1734695449791,-1153.1,0.00022739,6]
[346084147,1734695449800,-500.0,0.00022739,6]
[346084148,1734695449809,-500.0,0.00022739,6]
[346084149,1734695449819,-267.53555751,0.00022739,6]
[346084150,1734695449832,-232.46444249,0.00022739,6]
[346084151,1734695449842,-500.0,0.00022739,6]
[346084152,1734695450010,-825.59,0.00022739,6]
[346084153,1734695450020,-168.0,0.00022739,6]
[346084154,1734695450029,-163.55779789,0.00022739,6]
[346084155,1734695450042,-336.44220211,0.00022739,6]
[346084156,1734695450051,-909.44,0.00022739,6]
[346084157,1734695450060,-661.6,0.00022739,6]
[346084158,1734695450070,-292.51779799,0.00022739,6]
[346084159,1734695450081,-207.48220201,0.00022739,6]
[346084160,1734695450091,-500.0,0.00022739,6]
[346084161,1734695450100,-500.0,0.00022739,6]
[346084162,1734695450109,-500.0,0.00022739,6]
[346084163,1734695450119,-1058.73,0.00022739,6]
[346084164,1734695450128,-500.0,0.00022739,6]
[346084165,1734695450138,-500.0,0.00022739,6]
[346084166,1734695450147,-742.68,0.00022739,6]
[346084167,1734695450156,-500.0,0.00022739,6]
[346084168,1734695450165,-167.77311214,0.00022739,6]
[346084169,1734695450176,-431.21688786,0.00022739,6]
[346084170,1734695450187,-500.0,0.00022739,6]
[346084171,1734695450198,-500.0,0.00022739,6]
[346084172,1734695450207,-500.0,0.00022739,6]
[346084173,1734695450217,-500.0,0.00022739,6]
[346084174,1734695450229,-358.78311214,0.00022739,6]
[346084175,1734695450241,-353.20688786,0.00022739,6]
[346084176,1734695450251,-500.0,0.00022739,6]
[346084177,1734695450260,-500.0,0.00022739,6]
[346084178,1734695450270,-500.0,0.00022739,6]
[346084179,1734695450280,-500.0,0.00022739,6]
[346084180,1734695450289,-500.0,0.00022739,6]
[346084181,1734695450299,-1097.79,0.00022739,6]
[346084182,1734695450308,-674.85,0.00022739,6]
[346084183,1734695450317,-739.83,0.00022739,6]
[346084184,1734695450327,-500.0,0.00022739,6]
[346084185,1734695450336,-500.0,0.00022739,6]
[346084186,1734695450345,-1008.24,0.00022739,6]
[346084187,1734695450355,-500.0,0.00022739,6]
[346084188,1734695450364,-500.0,0.00022739,6]
[346084189,1734695450374,-527.61769285,0.00022739,6]
[346084190,1734695450384,-500.0,0.00022739,6]
[346084191,1734695450393,-500.0,0.00022739,6]
[346084192,1734695450403,-500.0,0.00022739,6]
[346084193,1734695450412,-500.0,0.00022739,6]
[346084194,1734695450422,-500.0,0.00022739,6]
[346084195,1734695450431,-500.0,0.00022739,6]
[346084196,1734695450441,-1582.09,0.00022739,6]
[346084197,1734695450450,-954.11,0.00022739,6]
[346084198,1734695450460,-500.0,0.00022739,6]
[346084199,1734695450469,-1591.5,0.00022739,6]
[346084200,1734695450479,-625.41,0.00022739,6]
[346084201,1734695450488,-500.0,0.00022739,6]
[346084202,1734695450497,-974.47,0.00022739,6]
[346084203,1734695450507,-891.65,0.00022739,6]
[346084204,1734695450516,-482.68585167,0.00022739,6]
[346084205,1734695450526,-940.38,0.00022739,6]
[346084206,1734695450535,-500.0,0.00022739,6]
[346084207,1734695450544,-500.0,0.00022739,6]
[346084208,1734695450554,-500.0,0.00022739,6]
[346084209,1734695450563,-500.0,0.00022739,6]
[346084210,1734695450574,-500.0,0.00022739,6]
[346084211,1734695450584,-1059.47,0.00022739,6]
[346084212,1734695450594,-500.0,0.00022739,6]
[346084213,1734695450604,-500.0,0.00022739,6]
[346084214,1734695450614,-500.0,0.00022739,6]
[346084215,1734695450624,-1737.43,0.00022739,6]
[346084216,1734695450634,-500.0,0.00022739,6]
[346084217,1734695450644,-8856.88,0.00022739,6]
[346084218,1734695450653,-1259.63,0.00022739,6]
[346084219,1734695450663,-604.9,0.00022739,6]
[346084220,1734695450673,-500.0,0.00022739,6]
[346084221,1734695450682,-500.0,0.00022739,6]
[346084222,1734695450692,-500.0,0.00022739,6]
[346084223,1734695450702,-500.0,0.00022739,6]
[346084224,1734695450711,-500.0,0.00022739,6]
[346084225,1734695450723,-350.0,0.00022739,2]
[346084226,1734695450732,-26119.07,0.00022739,6]
[346084227,1734695450741,-12484.53,0.00022739,6]
[346084228,1734695450751,-6479.93,0.00022739,6]
[346084229,1734695450761,-500.0,0.00022739,6]
[346084230,1734695450770,-500.0,0.00022739,6]
[346084231,1734695450779,-872.14,0.00022739,6]
[346084232,1734695450789,-500.0,0.00022739,6]
[346084233,1734695450798,-500.0,0.00022739,6]
[346084234,1734695450808,-500.0,0.00022739,6]
[346084235,1734695450817,-500.0,0.00022739,6]
[346084236,1734695450827,-500.0,0.00022739,6]